bitfinex/quotes_BTCUSD_20241119
["timestamp","ask_amount","ask_price","bid_price","bid_amount"]
[1731989906954,0.0047088,91350.0,91348.0,0.109471]
[1731989907163,0.0037088,91350.0,91348.0,0.109471]
[1731989907401,0.0047088,91350.0,91348.0,0.109471]
[1731989908045,0.0037088,91350.0,91340.0,0.16445655]
[1731989908255,0.0037088,91350.0,91349.0,0.10947]
[1731989908482,0.0137088,91350.0,91349.0,0.10947]
[1731989908714,0.0117088,91350.0,91349.0,0.10947]
[1731989908950,0.0157088,91350.0,91349.0,0.10947]
[1731989909175,0.0157088,91350.0,91349.0,0.22853255]
[1731989909412,0.0157088,91350.0,91349.0,0.30973255]
[1731989909646,0.0017088,91350.0,91349.0,0.30973255]
[1731989910130,0.0047088,91350.0,91349.0,0.45613255]
[1731989910349,0.0017088,91350.0,91349.0,0.45613255]
[1731989910580,0.0067088,91350.0,91349.0,0.46813255]
[1731989910814,0.0067088,91350.0,91349.0,0.49113255]
[1731989911059,0.0047088,91350.0,91349.0,0.49113255]
[1731989911299,0.0047088,91350.0,91349.0,0.49813255]
[1731989911535,0.16445655,91369.0,91349.0,0.49813255]
[1731989911536,0.16445655,91369.0,91368.0,0.340947]
[1731989911743,0.16445655,91369.0,91368.0,0.57423267]
[1731989911976,0.16445655,91381.0,91380.0,0.219433]
[1731989912222,0.001709,91383.0,91382.0,0.25443]
[1731989912451,0.00011026,91391.0,91390.0,0.231421]
[1731989912697,0.00011026,91391.0,91390.0,0.53170385]
[1731989912933,0.0017092,91406.0,91396.0,0.219413]
[1731989913155,0.0017092,91406.0,91396.0,0.32847555]
[1731989913367,0.0017092,91406.0,91396.0,0.33047555]
[1731989913788,0.0005446,91405.0,91404.0,0.109404]
[1731989913993,0.0005446,91405.0,91404.0,0.21846655]
[1731989914213,0.00533772,91405.0,91404.0,0.22031512]
[1731989914447,0.0005446,91405.0,91404.0,0.22031512]
[1731989914665,0.0005446,91405.0,91404.0,0.109404]
[1731989915572,0.0035446,91405.0,91404.0,0.109404]
[1731989915794,0.0035446,91405.0,91401.0,0.109406]
[1731989916006,0.0065446,91405.0,91401.0,0.109406]
[1731989916217,0.00518441,91404.0,91401.0,0.109406]
[1731989916661,0.0065446,91405.0,91390.0,0.04490459]
[1731989916889,0.0065446,91405.0,91345.0,0.11967162]
[1731989916890,0.0005446,91405.0,91393.0,0.16445655]
[1731989917109,0.0005446,91405.0,91401.0,0.109407]
[1731989917345,0.00518441,91404.0,91401.0,0.109407]
[1731989918703,0.00518441,91404.0,91393.0,0.16445655]
[1731989918915,0.0005446,91405.0,91401.0,0.109407]
[1731989919137,0.003,91404.0,91401.0,0.109407]
[1731989919601,0.003,91404.0,91396.0,0.218827]
[1731989919602,0.00518441,91403.0,91399.0,0.10941]
[1731989919829,0.109409,91400.0,91389.0,0.109422]
[1731989920072,0.00518441,91399.0,91394.0,0.16445655]
[1731989920390,0.00518441,91399.0,91385.0,0.109426]
[1731989920391,0.109416,91395.0,91385.0,0.109426]
[1731989920619,0.109416,91395.0,91384.0,0.218856]
[1731989920620,0.00513674,91398.0,91394.0,0.109415]
[1731989920852,0.113404,91404.0,91395.0,0.109415]
[1731989920853,0.109406,91403.0,91395.0,0.109415]
[1731989921089,0.00513674,91397.0,91395.0,0.109415]
[1731989921306,0.001,91400.0,91393.0,0.109417]
[1731989921529,0.001,91400.0,91390.0,0.218842]
[1731989921745,0.006,91404.0,91390.0,0.218842]
[1731989921746,0.003,91404.0,91393.0,0.109416]
[1731989921960,0.0017078,91395.0,91383.0,0.21022195]
[1731989922404,0.0017078,91395.0,91383.0,0.0008539]
[1731989922624,0.109421,91390.0,91383.0,0.0008539]
[1731989922878,0.109428,91384.0,91383.0,0.0008539]
[1731989923108,0.21849055,91384.0,91383.0,0.0008539]
[1731989923360,0.22360766,91384.0,91383.0,0.01795699]
[1731989923800,0.22360766,91384.0,91383.0,0.0008539]
[1731989924219,0.23560766,91384.0,91383.0,0.0018539]
[1731989925498,0.23960766,91384.0,91383.0,0.0018539]
[1731989928567,0.02111711,91384.0,91383.0,0.0018539]
[1731989928990,0.01311711,91384.0,91383.0,0.0018539]
[1731989929215,0.01311711,91384.0,91383.0,0.1112829]
[1731989931238,0.111428,91384.0,91383.0,0.0008539]
[1731989931452,0.113428,91384.0,91383.0,0.0008539]
[1731989932775,0.114428,91384.0,91383.0,0.0118539]
[1731989933285,0.113428,91384.0,91383.0,0.0008539]
[1731989933493,0.118428,91384.0,91383.0,0.0008539]
[1731989933712,0.114428,91384.0,91383.0,0.0008539]
[1731989933934,0.111428,91384.0,91383.0,0.0008539]
[1731989934137,0.122428,91384.0,91383.0,0.0018539]
[1731989934559,0.130428,91384.0,91383.0,0.0018539]
[1731989934784,0.23949055,91384.0,91383.0,0.0018539]
[1731989936102,0.130428,91384.0,91383.0,0.0018539]
[1731989939621,0.021,91384.0,91383.0,0.0018539]
[1731989942842,0.021,91384.0,91383.0,0.1112829]
[1731989943680,0.011,91384.0,91383.0,0.1112829]
[1731989943890,0.01240465,91392.0,91383.0,0.0008539]
[1731989944103,0.1111238,91395.0,91383.0,0.0008539]
[1731989944104,0.1111238,91395.0,91388.0,0.109423]
[1731989945152,0.003,91392.0,91388.0,0.109423]
[1731989945371,0.003,91392.0,91386.0,0.109425]
[1731989945572,0.003,91392.0,91385.0,0.218854]
[1731989945573,0.003,91392.0,91390.0,0.10942]
[1731989946027,0.003,91392.0,91388.0,0.109423]
[1731989946235,0.003,91392.0,91385.0,0.218854]
[1731989946236,0.003,91392.0,91389.0,0.109421]
[1731989946455,0.0017078,91395.0,91390.0,0.11125083]
[1731989946682,0.0017078,91395.0,91394.0,0.109416]
[1731989946911,0.0037078,91395.0,91394.0,0.22066647]
[1731989947759,0.0017078,91395.0,91394.0,0.22066647]
[1731989947979,0.0047078,91395.0,91394.0,0.22066647]
[1731989948687,0.0047078,91395.0,91388.0,0.04462295]
[1731989948688,0.142428,91384.0,91367.0,0.16445655]
[1731989948899,0.2206785,91384.0,91377.0,0.16445655]
[1731989949155,0.221837,91392.0,91378.0,0.109434]
[1731989949156,0.003,91392.0,91378.0,0.109434]
[1731989949396,0.00218795,91394.0,91377.0,0.16445655]
[1731989949633,0.109428,91384.0,91367.0,0.24605655]
[1731989949864,0.109428,91384.0,91368.0,0.109447]
[1731989950105,0.126428,91384.0,91383.0,0.0018539]
[1731989951074,0.109428,91384.0,91383.0,0.0008539]
[1731989951288,0.120428,91384.0,91383.0,0.0018539]
[1731989952011,0.126428,91384.0,91383.0,0.0018539]
[1731989952295,0.218825,91398.0,91383.0,0.0018539]
[1731989952296,0.0005446,91405.0,91383.0,0.23706062]
[1731989952526,0.16445655,91400.0,91385.0,0.002]
[1731989952765,0.0005446,91405.0,91394.0,0.109416]
[1731989953662,0.0005446,91405.0,91394.0,0.11160401]
[1731989954134,0.0037078,91395.0,91394.0,0.12560401]
[1731989955078,0.0037078,91395.0,91394.0,0.13260401]
[1731989957002,0.0037078,91395.0,91394.0,0.24166656]
[1731989957226,0.0037078,91395.0,91394.0,0.23947855]
[1731989957462,0.0037078,91395.0,91394.0,0.24147855]
[1731989957919,0.0017078,91395.0,91394.0,0.22547855]
[1731989958391,0.0017078,91395.0,91394.0,0.21847855]
[1731989958632,0.0017078,91395.0,91394.0,0.15274359]
[1731989958905,0.0017092,91407.0,91395.0,0.109414]
[1731989958906,0.2205132,91406.0,91395.0,0.109414]
[1731989959132,0.002,91395.0,91394.0,0.06432759]
[1731989959366,0.002,91395.0,91394.0,0.116416]
[1731989959594,0.002,91395.0,91394.0,0.007]
[1731989959822,0.113415,91395.0,91394.0,0.021]
[1731989960059,0.004,91395.0,91394.0,0.021]
[1731989960304,0.004,91395.0,91388.0,0.04340757]
[1731989960305,0.004,91395.0,91388.0,0.109422]
[1731989960539,0.004,91395.0,91383.0,0.0008539]
[1731989960767,0.004,91395.0,91384.0,0.04414962]
[1731989960988,0.218832,91394.0,91383.0,0.0008539]
[1731989961188,0.109417,91393.0,91383.0,0.04630099]
[1731989961421,0.10942,91391.0,91383.0,0.04630099]
[1731989961632,0.113415,91395.0,91394.0,0.007]
[1731989962075,0.002,91395.0,91385.0,0.109426]
[1731989962308,0.10942,91391.0,91383.0,0.1102829]
[1731989962542,0.10942,91391.0,91383.0,0.1352829]
[1731989962755,0.10942,91391.0,91383.0,0.1292829]
[1731989962985,0.10942,91391.0,91383.0,0.1102829]
[1731989963191,0.10942,91391.0,91385.0,0.017]
[1731989963621,0.11242,91391.0,91388.0,0.02140677]
[1731989963894,0.003,91391.0,91388.0,0.02140677]
[1731989964752,0.004,91391.0,91388.0,0.02140677]
[1731989964954,0.109422,91389.0,91388.0,0.02140677]
[1731989965617,0.21884,91391.0,91388.0,0.03440677]
[1731989965618,0.109422,91390.0,91388.0,0.03440677]
[1731989965851,0.004,91391.0,91388.0,0.03440677]
[1731989966108,0.112422,91389.0,91388.0,0.02740677]
[1731989966361,0.112422,91389.0,91383.0,0.0008539]
[1731989966362,0.252428,91384.0,91383.0,0.0008539]
[1731989966598,0.45790796,91384.0,91383.0,0.0008539]
[1731989966807,0.60500491,91384.0,91383.0,0.0008539]
[1731989967012,0.45790796,91384.0,91383.0,0.0008539]
[1731989967218,0.5559766,91384.0,91383.0,0.0008539]
[1731989967424,0.45790796,91384.0,91383.0,0.0008539]
[1731989967631,0.55596375,91384.0,91383.0,0.0008539]
[1731989967844,0.45790796,91384.0,91383.0,0.0008539]
[1731989968499,0.55595175,91384.0,91383.0,0.0008539]
[1731989968715,0.60295025,91384.0,91383.0,0.0028539]
[1731989969129,0.62995025,91384.0,91383.0,0.0028539]
[1731989969549,0.60953284,91384.0,91383.0,0.0028539]
[1731989970169,0.51149055,91384.0,91383.0,0.0028539]
[1731989970598,0.6585875,91384.0,91383.0,0.0028539]
[1731989971575,0.5485875,91384.0,91383.0,0.0028539]
[1731989971577,0.42189527,91384.0,91383.0,0.0028539]
[1731989972353,0.36789527,91384.0,91383.0,0.0028539]
[1731989972566,0.32749055,91384.0,91383.0,0.0008539]
[1731989972745,0.35449055,91384.0,91383.0,0.0008539]
[1731989973089,0.38149055,91384.0,91383.0,0.0008539]
[1731989973494,0.4018921,91384.0,91383.0,0.0008539]
[1731989973716,0.3938921,91384.0,91383.0,0.0008539]
[1731989973926,0.4078921,91384.0,91383.0,0.0018539]
[1731989974371,0.3538921,91384.0,91383.0,0.0018539]
[1731989974577,0.36049055,91384.0,91383.0,0.0018539]
[1731989974780,0.3808921,91384.0,91383.0,0.0018539]
[1731989974981,0.3668921,91384.0,91383.0,0.0008539]
[1731989975193,0.3828921,91384.0,91383.0,0.0018539]
[1731989977798,0.06340155,91384.0,91383.0,0.0018539]
[1731989977993,0.043,91384.0,91383.0,0.1112829]
[1731989978637,0.027,91384.0,91383.0,0.1102829]
[1731989978882,0.027,91384.0,91383.0,0.15415771]
[1731989979109,0.11245685,91395.0,91385.0,0.008]
[1731989979110,0.0008539,91395.0,91385.0,0.008]
[1731989979316,0.0008539,91395.0,91387.0,0.008]
[1731989979518,0.00304185,91395.0,91391.0,0.109419]
[1731989980132,0.00304185,91395.0,91387.0,0.008]
[1731989980133,0.00304185,91395.0,91388.0,0.218847]
[1731989980342,0.00304185,91395.0,91389.0,0.218844]
[1731989980543,0.00304185,91395.0,91391.0,0.109419]
[1731989980747,0.00304185,91395.0,91392.0,0.109418]
[1731989980946,0.00304185,91395.0,91390.0,0.109421]
[1731989981123,0.11245685,91395.0,91388.0,0.109423]
[1731989981386,0.11245685,91395.0,91387.0,0.17245655]
[1731989981387,0.01004185,91395.0,91387.0,0.17245655]
[1731989981581,0.01004185,91395.0,91390.0,0.10942]
[1731989981845,0.0008539,91395.0,91390.0,0.10942]
[1731989982058,0.02104185,91395.0,91392.0,0.001]
[1731989982455,0.02904185,91395.0,91392.0,0.001]
[1731989982686,0.02904185,91395.0,91390.0,0.10942]
[1731989982898,0.01104185,91395.0,91390.0,0.10942]
[1731989983107,0.01704185,91395.0,91390.0,0.10942]
[1731989983315,0.00904185,91395.0,91390.0,0.10942]
[1731989983537,0.11845685,91395.0,91389.0,0.109422]
[1731989983760,0.11845685,91395.0,91387.0,0.008]
[1731989983761,0.00904185,91395.0,91390.0,0.10942]
[1731989984477,0.00904185,91395.0,91394.0,0.117416]
[1731989984478,0.0008539,91395.0,91394.0,0.117416]
[1731989984902,0.0058539,91395.0,91394.0,0.117416]
[1731989985124,0.0228539,91395.0,91394.0,0.11960114]
[1731989985342,0.0228539,91395.0,91394.0,0.117416]
[1731989985766,0.0228539,91395.0,91394.0,0.118416]
[1731989985767,0.0268539,91395.0,91394.0,0.118416]
[1731989985975,0.0058539,91395.0,91394.0,0.117416]
[1731989986181,0.0058539,91395.0,91394.0,0.11960109]
[1731989986386,0.0088539,91395.0,91394.0,0.12560109]
[1731989986595,0.0088539,91395.0,91394.0,0.11960109]
[1731989986831,0.0068539,91395.0,91394.0,0.12760109]
[1731989987909,0.0078539,91395.0,91394.0,0.14460109]
[1731989988972,0.0017092,91406.0,91394.0,0.14460109]
[1731989988973,0.0015631,91406.0,91405.0,0.117403]
[1731989989399,0.0015631,91406.0,91396.0,0.218827]
[1731989989400,0.002,91384.0,91371.0,0.0980169]
[1731989989601,0.24349055,91384.0,91368.0,0.16445655]
[1731989989822,0.36766032,91384.0,91368.0,0.16445655]
[1731989990027,0.38806596,91384.0,91368.0,0.16445655]
[1731989990441,0.26389619,91384.0,91368.0,0.16445655]
[1731989990677,0.24349055,91384.0,91368.0,0.16445655]
[1731989990889,0.26049055,91384.0,91383.0,0.0028539]
[1731989991306,0.24349055,91384.0,91383.0,0.0008539]
[1731989991562,0.24149055,91384.0,91383.0,0.0028539]
[1731989991799,0.017,91384.0,91383.0,0.0028539]
[1731989991997,0.1666445,91394.0,91383.0,0.0108539]
[1731989992219,0.00218795,91393.0,91383.0,0.0108539]
[1731989992448,0.027,91384.0,91383.0,0.0118539]
[1731989992875,0.027,91384.0,91383.0,0.0098539]
[1731989993125,0.054,91384.0,91383.0,0.0118539]
[1731989993342,0.027,91384.0,91383.0,0.0108539]
[1731989993567,0.025,91384.0,91383.0,0.0098539]
[1731989993783,0.025,91384.0,91383.0,0.0158539]
[1731989993988,0.026,91384.0,91383.0,0.0158539]
[1731989994461,0.025,91384.0,91383.0,0.0098539]
[1731989994683,0.025,91384.0,91383.0,0.1182829]
[1731989994684,0.003,91384.0,91383.0,0.1182829]
[1731989995094,0.004,91384.0,91383.0,0.1222829]
[1731989995338,0.24549055,91384.0,91383.0,0.0048539]
[1731989995546,0.32339055,91384.0,91383.0,0.0048539]
[1731989995800,0.33979321,91384.0,91383.0,0.0008539]
[1731989995997,0.33979321,91384.0,91383.0,0.0088539]
[1731989996248,0.45379321,91384.0,91383.0,0.0208539]
[1731989996455,0.45379321,91384.0,91356.0,0.16445655]
[1731989996456,0.10946,91357.0,91356.0,0.16445655]
[1731989997115,0.109449,91366.0,91351.0,0.008]
[1731989997323,0.29870705,91365.0,91356.0,0.01710301]
[1731989997535,0.10946,91357.0,91356.0,0.01710301]
[1731989998185,0.10946,91357.0,91356.0,0.02510301]
[1731989998840,0.002,91357.0,91356.0,0.02910301]
[1731989999055,0.11146,91357.0,91356.0,0.02910301]
[1731989999285,0.11146,91357.0,91356.0,0.03310301]
[1731989999497,0.11246,91357.0,91356.0,0.008]
[1731989999913,0.11246,91357.0,91356.0,0.011]
[1731990000357,0.003,91357.0,91356.0,0.008]
[1731990000567,0.11464795,91357.0,91356.0,0.008]
[1731990001257,0.00518795,91357.0,91356.0,0.008]
[1731990001473,0.003,91357.0,91356.0,0.008]
[1731990001676,0.00518795,91357.0,91356.0,0.008]
[1731990001856,0.11464795,91357.0,91356.0,0.008]
[1731990002139,0.11464795,91357.0,91356.0,0.0097078]
[1731990002553,0.00518795,91357.0,91356.0,0.02681237]
[1731990002763,0.003,91357.0,91356.0,0.02681237]
[1731990003175,0.11246,91357.0,91356.0,0.02681237]
[1731990003618,0.11246,91357.0,91356.0,0.0097078]
[1731990003825,0.10446,91357.0,91356.0,0.0097078]
[1731990004973,0.09791866,91377.0,91360.0,0.008]
[1731990004974,0.218873,91377.0,91360.0,0.008]
[1731990005169,0.109451,91365.0,91361.0,0.008]
[1731990005413,0.1666445,91364.0,91356.0,0.0097078]
[1731990005616,0.10946,91357.0,91356.0,0.0097078]
[1731990006058,0.10946,91357.0,91356.0,0.0017078]
[1731990006548,0.00218795,91360.0,91356.0,0.0017078]
[1731990006751,0.32093733,91384.0,91371.0,0.008]
[1731990006752,0.02437912,91377.0,91371.0,0.008]
[1731990006984,0.02437912,91377.0,91358.0,0.0752]
[1731990006985,0.004,91377.0,91376.0,0.117437]
[1731990007197,0.16445655,91383.0,91376.0,0.008]
[1731990007417,0.16445655,91383.0,91379.0,0.109434]
[1731990007852,0.109424,91388.0,91379.0,0.109434]
[1731990008074,0.00218795,91387.0,91377.0,0.109435]
[1731990008280,0.015,91377.0,91376.0,0.01]
[1731990008527,0.015,91377.0,91376.0,0.119437]
[1731990009951,0.015,91377.0,91376.0,0.12161755]
[1731990010033,0.001,91387.0,91377.0,0.547182]
[1731990010260,0.001,91387.0,91386.0,0.109425]
[1731990010463,0.16531045,91395.0,91387.0,0.109423]
[1731990010956,0.16531045,91395.0,91385.0,0.008]
[1731990011210,0.0238539,91395.0,91385.0,0.008]
[1731990011433,0.001,91387.0,91386.0,0.109425]
[1731990011673,0.109416,91394.0,91385.0,0.008]
[1731990011902,0.109416,91394.0,91387.0,0.109424]
[1731990012132,0.109416,91394.0,91387.0,0.110424]
[1731990012587,0.109416,91394.0,91388.0,0.109423]
[1731990013041,0.0288539,91395.0,91388.0,0.109423]
[1731990013287,0.0288539,91395.0,91394.0,0.117416]
[1731990013288,0.0058539,91395.0,91394.0,0.117416]
[1731990013500,0.0028539,91395.0,91394.0,0.117416]
[1731990013726,0.0028539,91395.0,91394.0,0.22647855]
[1731990014142,0.0008539,91395.0,91394.0,0.22647855]
[1731990014600,0.0008539,91395.0,91394.0,0.22847855]
[1731990015030,0.0068539,91395.0,91394.0,0.22947855]
[1731990015647,0.0088539,91395.0,91394.0,0.24547855]
[1731990015877,0.0088539,91395.0,91394.0,0.29001574]
[1731990016079,0.0088539,91395.0,91394.0,0.28801574]
[1731990016303,0.0098539,91395.0,91394.0,0.29501574]
[1731990017353,0.0098539,91395.0,91394.0,0.29701574]
[1731990017821,0.0098539,91395.0,91394.0,0.29501574]
[1731990018917,0.0018539,91395.0,91394.0,0.29501574]
[1731990019346,0.0018539,91395.0,91394.0,0.18595319]
[1731990020905,0.0018539,91395.0,91394.0,0.29701574]
[1731990022451,0.0018539,91395.0,91394.0,0.30701574]
[1731990026009,0.002708,91395.0,91394.0,0.30701574]
[1731990028602,0.002708,91395.0,91394.0,0.49827962]
[1731990028834,0.002708,91395.0,91394.0,0.65787962]
[1731990029770,0.001708,91395.0,91394.0,0.65087962]
[1731990030047,0.0018541,91395.0,91394.0,0.64787962]
[1731990030139,0.0018541,91395.0,91394.0,0.67287962]
[1731990030311,0.0038541,91395.0,91394.0,0.67287962]
[1731990030874,0.0038541,91395.0,91394.0,0.75587962]
[1731990031890,0.0028541,91395.0,91394.0,0.74187962]
[1731990032097,0.0038541,91395.0,91394.0,0.75987962]
[1731990032477,0.0028541,91395.0,91394.0,0.74187962]
[1731990032932,0.0008541,91395.0,91394.0,0.71687962]
[1731990033138,0.0008541,91395.0,91394.0,0.74487962]
[1731990033356,0.0015631,91406.0,91405.0,0.239403]
[1731990033558,0.0015631,91406.0,91405.0,0.34846555]
[1731990033766,0.00824448,91406.0,91405.0,0.34846555]
[1731990033951,0.0017092,91407.0,91406.0,0.13]
[1731990034097,0.0017092,91407.0,91406.0,0.34846455]
[1731990034497,0.0017092,91407.0,91406.0,0.10906255]
[1731990034726,0.0017092,91407.0,91406.0,0.21846455]
[1731990035718,0.0017092,91407.0,91406.0,0.22646455]
[1731990036334,0.0017092,91407.0,91406.0,0.25446455]
[1731990036546,0.0017092,91407.0,91406.0,0.21846455]
[1731990036954,0.0017092,91407.0,91406.0,0.24646455]
[1731990037155,0.0017092,91407.0,91406.0,0.21846455]
[1731990037568,0.0017092,91407.0,91406.0,0.24646455]
[1731990037779,0.0017092,91407.0,91406.0,0.34646455]
[1731990037983,0.0017092,91407.0,91406.0,0.35946455]
[1731990038432,0.0017092,91407.0,91406.0,0.33146455]
[1731990038649,0.0017092,91407.0,91406.0,0.31846455]
[1731990039707,0.0017092,91407.0,91406.0,0.33046455]
[1731990039930,0.0017092,91407.0,91406.0,0.35846455]
[1731990040153,0.0017092,91407.0,91406.0,0.33046455]
[1731990040769,0.0017092,91407.0,91406.0,0.35846455]
[1731990048331,0.02216638,91407.0,91406.0,0.35846455]
[1731990048974,0.01416638,91407.0,91406.0,0.35846455]
[1731990049185,0.01416638,91407.0,91406.0,0.31846455]
[1731990049426,0.01416638,91407.0,91406.0,0.34246455]
[1731990050096,0.01416638,91407.0,91406.0,0.35846455]
[1731990050353,0.01502078,91407.0,91406.0,0.34046455]
[1731990050584,0.01502078,91407.0,91406.0,0.35046455]
[1731990050806,0.01502078,91407.0,91406.0,0.35546455]
[1731990051040,0.0008544,91407.0,91406.0,0.35546455]
[1731990051260,0.0008544,91407.0,91406.0,0.35046455]
[1731990051735,0.0008544,91407.0,91406.0,0.35746455]
[1731990051976,0.0008544,91407.0,91406.0,0.32546455]
[1731990052208,0.0008544,91407.0,91406.0,0.31846455]
[1731990052409,0.0018544,91407.0,91406.0,0.35346455]
[1731990052829,0.0018544,91407.0,91406.0,0.38146455]
[1731990053307,0.0018544,91407.0,91406.0,0.36146455]
[1731990053514,0.0008544,91407.0,91406.0,0.37446455]
[1731990053727,0.0008544,91407.0,91406.0,0.31846455]
[1731990053951,0.0008544,91407.0,91406.0,0.33346455]
[1731990054210,0.0008544,91407.0,91406.0,0.36146455]
[1731990054420,0.0004,91429.0,91412.0,0.209394]
[1731990054710,0.0004,91429.0,91412.0,0.44773476]
[1731990054938,0.0004,91429.0,91412.0,0.44555655]
[1731990055378,0.0004,91429.0,91412.0,0.54347944]
[1731990055597,8e-07,91413.0,91412.0,0.54347944]
[1731990056037,8e-07,91413.0,91412.0,0.56647944]
[1731990056262,8e-07,91413.0,91412.0,0.46855655]
[1731990056473,0.0004,91429.0,91412.0,0.35916255]
[1731990056700,0.16445655,91440.0,91412.0,0.35916255]
[1731990056701,0.16445655,91440.0,91439.0,0.109362]
[1731990056928,0.17221979,91440.0,91439.0,0.109362]
[1731990057398,0.00776324,91440.0,91439.0,0.109362]
[1731990057814,0.16445655,91450.0,91434.0,0.437474]
[1731990057815,0.16445655,91450.0,91441.0,0.10936]
[1731990058043,0.16445655,91450.0,91441.0,0.23338754]
[1731990058475,0.0756,91452.0,91441.0,0.34245009]
[1731990058697,0.0856,91452.0,91441.0,0.34245009]
[1731990059792,0.0856,91452.0,91441.0,0.36045009]
[1731990060005,0.0856,91452.0,91441.0,0.34445009]
[1731990060226,0.0856,91452.0,91441.0,0.35945009]
[1731990060454,0.0856,91452.0,91441.0,0.35745009]
[1731990060898,0.0856,91452.0,91441.0,0.35845009]
[1731990061169,0.0856,91452.0,91441.0,0.40258698]
[1731990061830,0.0856,91452.0,91441.0,0.38758698]
[1731990062060,0.0856,91452.0,91441.0,0.40558698]
[1731990062288,0.01,91458.0,91441.0,0.40558698]
[1731990062495,0.0772,91460.0,91441.0,0.40558698]
[1731990062906,0.16445655,91462.0,91441.0,0.38658698]
[1731990063325,0.16445655,91462.0,91441.0,0.50858698]
[1731990063558,4e-07,91442.0,91441.0,0.63261452]
[1731990063771,0.16445655,91462.0,91453.0,0.209345]
[1731990063973,0.022,91454.0,91453.0,0.44462164]
[1731990064178,0.022,91454.0,91453.0,0.44243509]
[1731990065256,0.022,91454.0,91453.0,0.46814859]
[1731990065496,0.022,91454.0,91453.0,0.44243509]
[1731990065706,0.022,91454.0,91453.0,0.46814859]
[1731990065918,0.022,91454.0,91453.0,0.48614859]
[1731990066131,0.022,91454.0,91453.0,0.51232251]
[1731990066601,0.022,91454.0,91453.0,0.53732251]
[1731990066823,0.0004,91469.0,91468.0,0.23335454]
[1731990067069,0.0004,91469.0,91468.0,0.34241709]
[1731990067953,0.0004,91469.0,91468.0,0.49430451]
[1731990068184,0.0004,91469.0,91468.0,0.46813059]
[1731990068410,0.0004,91469.0,91468.0,0.44241709]
[1731990068854,0.0004,91469.0,91468.0,0.46859101]
[1731990069077,0.0004,91469.0,91468.0,0.50630451]
[1731990069297,0.0004,91469.0,91468.0,0.48013059]
[1731990069747,0.0004,91469.0,91468.0,0.45441709]
[1731990070166,0.0004,91469.0,91468.0,0.45541709]
[1731990071930,0.0004,91469.0,91468.0,0.44341709]
[1731990072143,0.0004,91469.0,91468.0,0.45341709]
[1731990072358,0.0004,91469.0,91468.0,0.45241709]
[1731990073020,0.16531055,91480.0,91475.0,0.23334654]
[1731990073227,0.16531055,91480.0,91475.0,0.34240909]
[1731990073446,0.01262834,91476.0,91475.0,0.34240909]
[1731990073650,0.0017082,91476.0,91475.0,0.34240909]
[1731990074105,0.0017082,91476.0,91475.0,0.44240909]
[1731990075709,0.0017082,91476.0,91475.0,0.56643663]
[1731990077370,0.0017082,91476.0,91475.0,0.57043663]
[1731990077827,2e-07,91476.0,91475.0,0.57043663]
[1731990078312,2e-07,91476.0,91475.0,0.59743663]
[1731990078548,2e-07,91476.0,91475.0,1.29343663]
[1731990078787,0.0008543,91487.0,91483.0,0.1]
[1731990079046,0.16485655,91489.0,91488.0,0.209303]
[1731990079047,0.15771085,91489.0,91488.0,0.209303]
[1731990079257,0.16445655,91510.0,91489.0,0.1]
[1731990079462,0.16445655,91510.0,91498.0,0.23331954]
[1731990079687,0.16445655,91510.0,91498.0,0.34238209]
[1731990080913,0.16445655,91510.0,91498.0,0.34102388]
[1731990081618,0.16445655,91510.0,91498.0,0.22499634]
[1731990082095,0.16445655,91510.0,91498.0,0.34902388]
[1731990083055,0.16445655,91510.0,91498.0,0.3938845]
[1731990083744,0.01,91504.0,91498.0,0.16079441]
[1731990084435,0.01,91504.0,91498.0,0.28482195]
[1731990084648,0.01,91504.0,91498.0,0.3938845]
[1731990085384,0.16485655,91509.0,91498.0,0.8138845]
[1731990085610,0.0004,91509.0,91498.0,0.9138845]
[1731990086747,0.0004,91509.0,91498.0,0.5018845]
[1731990087173,0.0004,91509.0,91498.0,0.4938845]
[1731990087381,0.0004,91509.0,91498.0,0.5218845]
[1731990087590,0.0004,91509.0,91498.0,0.64591204]
[1731990087802,0.0004,91509.0,91498.0,0.50997825]
[1731990088036,7e-05,91521.0,91520.0,0.109265]
[1731990088250,0.16452655,91521.0,91520.0,0.34235509]
[1731990088479,7e-05,91521.0,91520.0,0.34235509]
[1731990088714,0.01129154,91521.0,91520.0,0.34235509]
[1731990088932,7e-05,91521.0,91520.0,0.34235509]
[1731990089780,7e-05,91521.0,91520.0,0.34335509]
[1731990090231,7e-05,91521.0,91520.0,0.21932755]
[1731990090672,7e-05,91521.0,91520.0,0.93132755]
[1731990090925,7e-05,91521.0,91520.0,1.05535509]
[1731990091138,7e-05,91521.0,91520.0,1.08035509]
[1731990091574,7e-05,91521.0,91520.0,0.36735509]
[1731990091805,7e-05,91521.0,91520.0,0.36835509]
[1731990092010,7e-05,91521.0,91520.0,0.34335509]
[1731990092219,7e-05,91521.0,91520.0,0.37758048]
[1731990092432,7e-05,91521.0,91520.0,1.08958048]
[1731990092638,7e-05,91521.0,91520.0,1.07758048]
[1731990093083,7e-05,91521.0,91520.0,1.12904412]
[1731990093303,3e-05,91521.0,91520.0,1.10681873]
[1731990093526,3e-05,91521.0,91520.0,1.08781873]
[1731990093769,3e-05,91521.0,91520.0,1.10981873]
[1731990093989,0.01632686,91531.0,91530.0,0.109253]
[1731990094210,0.03667518,91531.0,91530.0,0.21831555]
[1731990094896,0.0366766,91531.0,91530.0,0.21831555]
[1731990095327,0.0366766,91531.0,91530.0,0.109253]
[1731990095532,0.06924076,91531.0,91530.0,0.109253]
[1731990095956,0.01,91530.0,91524.0,0.218519]
[1731990096173,0.01,91530.0,91529.0,0.109254]
[1731990096386,0.06291598,91530.0,91529.0,0.109254]
[1731990097491,0.01,91519.0,91510.0,0.218554]
[1731990097700,0.01,91519.0,91518.0,0.27372455]
[1731990097903,0.03035991,91519.0,91518.0,0.109268]
[1731990098169,0.06293597,91519.0,91518.0,0.109268]
[1731990100158,0.07236312,91519.0,91518.0,0.114268]
[1731990100798,0.06293597,91519.0,91518.0,0.114268]
[1731990101663,0.03038066,91519.0,91518.0,0.114268]
[1731990103633,0.06301001,91519.0,91518.0,0.114268]
[1731990104282,0.06301001,91519.0,91518.0,0.005]
[1731990104520,0.15101001,91519.0,91518.0,0.005]
[1731990104781,0.16259688,91519.0,91518.0,0.005]
[1731990105011,0.15040893,91519.0,91518.0,0.114268]